Cogmind - Beta 15 @@@ ROGUE MODE // 2025.06.30 @ 22:44:27 Player: BlobtheGreat Result: Destroyed by S-27 Virus with Autogun Performance ------------- Evolutions (5) 2500 Regions Visited (18) 3600 Robots Destroyed (235) 1175 Value Destroyed (11199) 11199 Prototype IDs (32) 640 Alien Tech Used (0) 0 Bonus (5800) 5800 TOTAL SCORE: 24914 Bonus ------- High Alert Combat Kills 759 Follower Combat Kills 775 Entered Garrisons 1000 Used RIF Installer 3000 Aligned with FarCom 300 Friendly Fire -34 Cogmind --------- Core Integrity 0/1000 Matter 157/300 Energy 55/100 System Corruption 4% Temperature Cool (4) Movement Hovering (77) Location -5/Garrison Parts ------- > --- POWER (1) -------- (None) > --- PROPULSION (6) --- Combat Airjet Combat Airjet > --- UTILITY (7) ------ (None) > --- WEAPON (3) ------- (None) > --- INVENTORY (5) ---- Improved Gravmag System Gyrokinetic Inverter Advanced Heat Sink Relay Coupler [NC] (31) Peak State ------------ > --- POWER ------------ Particle Reactor > --- PROPULSION ------- Medium Treads Improved Medium Treads Armored Medium Treads Improved Heavy Treads Antigrav System > --- UTILITY ---------- Improved Heat Sink Advanced Heat Sink Huge Storage Unit Target Analyzer Improved Weapon Cycler Improved Light Armor Plating Relay Coupler [Specialist] > --- WEAPON ----------- High-powered Shock Rifle Heavy Ion Cannon Enhanced Autogun > --- INVENTORY -------- Neutrino Core Improved Gravmag System Combat Airjet Combat Airjet Combat Airjet Combat Airjet Gyrokinetic Inverter Linear Gravjet Advanced Cooling System High-capacity Storage Unit Hardened Medium Armor Plating Hardened Medium Armor Plating Relay Coupler [NC] Relay Coupler [Grunt] Relay Coupler [Sentry] Relay Coupler [Demolisher] Relay Coupler [Hunter] Chronowheel Wave Gun Wave Gun Wave Gun Flak Gun Bore Cannon Heavy Missile Launcher Remote Datajack [Rating: 94] Favorites ----------- Power Heavy Ion Engine Engine Heavy Ion Engine Power Core Neutrino Core Reactor Particle Reactor Propulsion Light Treads Treads Light Treads Wheel Wheel Hover Unit Antigrav System Utility Huge Storage Unit Device Improved Heat Sink Storage Huge Storage Unit Processor Target Analyzer Hackware Relay Coupler [Swarmer] Protection Improved Light Armor Plating Weapon Heavy Ion Cannon Energy Gun High-powered Shock Rifle Energy Cannon Heavy Ion Cannon Ballistic Gun Improved Assault Rifle Ballistic Cannon Bore Cannon Launcher Rocket Launcher Special Weapon Remote Datajack Build | -11 -10 -10 -9 -9 -9 -8 -8 -8 -7 -7 -7 -7 -6 -6 -5 -5 -5 -5 ------- Run | Yrd Mat Min Mat Min Exi Min Mat Gar Fac Gar Fac Gar Fac Gar Fac Was Fac Gar Slots Evolved 10 | . . . 2 . . . 2 . 2 . . . 2 . 2 . . . Power . | . . . . . . . . . . . . . . . . . . . Propulsion 4 | . . . 1 . . . . . . . . . 1 . 2 . . . Utility 5 | . . . 1 . . . 2 . 1 . . . 1 . . . . . Weapon 1 | . . . . . . . . . 1 . . . . . . . . . Parts Attached 142 | 7 11 1 19 7 . 4 11 13 5 15 . 9 2 13 . 1 16 8 Power 17 | 1 2 . 3 . . 1 2 1 . . . 1 . 3 . . 2 1 Engine 9 | 1 1 . 3 . . . 1 1 . . . 1 . 1 . . . . Core 6 | . 1 . . . . 1 1 . . . . . . 2 . . 1 . Reactor 2 | . . . . . . . . . . . . . . . . . 1 1 Propulsion 35 | 2 3 . 4 2 . 1 3 3 . 4 . 2 1 2 . . 5 3 Treads 29 | 2 3 . 4 2 . 1 3 3 . 4 . 2 1 2 . . 1 1 Leg . | . . . . . . . . . . . . . . . . . . . Wheel 1 | . . . . . . . . . . . . . . . . . 1 . Hover 5 | . . . . . . . . . . . . . . . . . 3 2 Flight . | . . . . . . . . . . . . . . . . . . . Utility 47 | 2 3 1 4 2 . . 5 6 3 6 . 3 1 4 . 1 4 2 Device 23 | 1 . 1 2 . . . 2 4 3 2 . 1 1 2 . 1 3 . Storage 4 | 1 3 . . . . . . . . . . . . . . . . . Processor 1 | . . . . . . . 1 . . . . . . . . . . . Hackware 6 | . . . . . . . . 1 . 1 . 1 . . . . 1 2 Protection 13 | . . . 2 2 . . 2 1 . 3 . 1 . 2 . . . . Artifact . | . . . . . . . . . . . . . . . . . . . Weapon 43 | 2 3 . 8 3 . 2 1 3 2 5 . 3 . 4 . . 5 2 Energy Gun 6 | . . . . . . . . . . . . . . 3 . . 2 1 Energy Cannon 8 | . 1 . 2 . . . . 3 . 2 . . . . . . . . Ballistic Gun 18 | 2 2 . 5 2 . 1 1 . 2 1 . . . 1 . . 1 . Ballistic Cannon 2 | . . . . . . . . . . . . 1 . . . . 1 . Launcher 6 | . . . 1 1 . 1 . . . 1 . 1 . . . . 1 . Special Weapon 3 | . . . . . . . . . . 1 . 1 . . . . . 1 Impact Weapon . | . . . . . . . . . . . . . . . . . . . Slashing Weapon . | . . . . . . . . . . . . . . . . . . . Piercing Weapon . | . . . . . . . . . . . . . . . . . . . Special Melee Weapon . | . . . . . . . . . . . . . . . . . . . Unidentified Prototypes 3 | . . 1 2 . . . . . . . . . . . . . . . Corrupted Parts 1 | . . . . . . . . . . . . . . 1 . . . . System Corruption 2 | . . . . . . . . . . . . . . 2 . . . . Parts Lost 77 | . 2 . 8 6 . . 5 5 . 7 . 8 . 9 . . 6 21 Power 9 | . . . 1 . . . 1 1 . . . 1 . 2 . . 1 2 Propulsion 23 | . 1 . 3 3 . . 2 . . 2 . 3 . 1 . . 2 6 Utility 20 | . . . 2 1 . . 2 1 . 2 . 3 . 3 . . 1 5 Weapon 25 | . 1 . 2 2 . . . 3 . 3 . 1 . 3 . . 2 8 Highest Loss Streak 21 | . 1 . 3 3 . . 2 2 . 4 . 3 . 4 . . 2 21 To Critical Strikes 2 | . . . . . . . . . . . . . . . . . . 2 Average Backups 23 | 5 17 25 24 22 24 24 24 24 24 24 25 23 22 24 25 25 24 24 Power 1 | . 1 2 1 1 1 1 1 2 1 1 1 . 1 1 3 2 . . Propulsion 4 | 3 7 9 8 6 6 5 2 2 2 2 3 1 1 4 5 5 6 6 Utility 7 | . 1 3 4 5 6 7 7 10 10 10 12 12 11 8 8 8 8 8 Weapon 7 | . 6 10 10 8 9 8 10 8 8 7 6 6 7 6 6 5 5 4 Tool/Special . | . . . . . . . . . . . . . . . . . . . Unused Backups 60 | . 1 1 3 . . 2 3 9 3 3 . 5 6 6 . 2 1 15 Power 4 | . . . . . . . . 1 . 1 . . . 1 . 1 . . Propulsion 16 | . 1 . 1 . . 2 1 1 . . . 4 1 1 . . . 4 Utility 22 | . . . . . . . . 4 1 2 . . 2 4 . 1 . 8 Weapon 15 | . . 1 2 . . . 2 3 1 . . 1 3 . . . 1 1 Tool/Special 3 | . . . . . . . . . 1 . . . . . . . . 2 Average Slot Usage (%) 94 | . 99 99 97 97 77 99 99 99 98 99 100 90 85 87 82 82 89 87 Engine 6 | . 12 . 9 11 11 8 . 8 7 7 7 7 6 3 . . . . Core 2 | . 1 14 1 . . 2 8 . . . . . . 2 5 5 3 4 Treads 23 | . 27 28 32 32 33 33 26 27 23 22 23 13 13 15 17 17 17 10 Device 14 | . 14 13 12 11 11 11 16 15 22 17 15 12 12 12 11 11 18 21 Storage 8 | . 14 14 11 11 11 11 9 9 7 7 7 7 5 6 5 5 5 4 Processor 4 | . . . . . . . 8 9 7 7 7 7 6 6 5 5 5 4 Hackware 3 | . . . . . . . . . . 5 7 8 13 13 11 11 6 4 Protection 6 | . . . 8 8 11 11 10 11 7 7 7 6 6 5 5 5 2 . Energy Gun 1 | . . . . . . . . . . . . . . 4 5 5 3 10 Energy Cannon 7 | . 7 14 9 2 . . 8 8 14 9 15 7 10 8 5 5 1 . Ballistic Gun 10 | . 20 14 12 17 . 20 9 7 7 12 7 9 2 5 5 5 7 4 Peak Build Rating 94 | 7 15 21 22 19 17 23 37 40 47 47 46 59 76 79 77 79 94 89 Average Rating 42 | 5 9 15 17 18 14 21 31 34 46 46 46 55 74 75 77 77 82 82 On Entrance 40 | . 7 15 15 19 19 15 23 33 40 47 46 46 59 76 77 77 76 88 Naked Turns 1 | . . . . . . . . . . . . . . . . . . 1 Heaviest Build 120 | 11 92 95 100 100 92 98 113 114 118 114 113 115 114 119 115 115 120 116 Greatest Support 160 | 40 46 46 66 60 60 63 63 63 63 63 62 95 150 150 133 133 160 57 Greatest Overweight (x) 11 | . 2 2 1 2 1 1 1 1 2 5 1 1 . 1 . . 11 11 Average Overweight (x) . | . . 1 1 1 1 1 1 1 1 1 1 1 . . . . . 9 Largest Inventory Capacity 25 | 8 25 25 25 25 25 25 25 25 25 25 25 25 25 25 25 25 25 25 Average Capacity 24 | 7 20 25 25 25 25 25 25 25 25 25 25 25 24 25 25 25 25 24 Most Carried 25 | 7 25 25 25 25 25 25 25 25 25 25 25 25 25 25 25 25 25 25 Average Carried 23 | 5 17 25 24 22 24 24 24 24 24 24 25 24 22 24 25 24 24 23 Final Capacity 25 | 8 25 25 25 25 25 25 25 25 25 25 25 25 25 25 25 25 25 5 Final Carried 25 | 7 25 25 25 22 25 25 25 25 25 25 25 25 25 25 25 25 25 4 Class Distribution -------------------- 36% | Mutant 20% | Bothacker-Gunner 19% | Botlord-Tank 12% | Scavenger-Mutant 7% | Bothacker-Tank Dominant Class ---------------- Mutant | -10/Materials Mutant | -10/Mines Mutant | -9/Materials Mutant | -9/Mines Mutant | -9/Exiles Mutant | -8/Mines Scavenger-Mutant | -8/Materials Scavenger-Mutant | -8/Garrison Bothacker-Gunner | -7/Factory Bothacker-Gunner | -7/Garrison Bothacker-Gunner | -7/Factory Bothacker-Tank | -7/Garrison Botlord-Tank | -6/Factory Botlord-Tank | -6/Garrison Botlord-Tank | -5/Factory Botlord-Tank | -5/Waste Bothacker-Gunner | -5/Factory Botlord-Gunner | -5/Garrison Resources | -11 -10 -10 -9 -9 -9 -8 -8 -8 -7 -7 -7 -7 -6 -6 -5 -5 -5 -5 ----------- Run | Yrd Mat Min Mat Min Exi Min Mat Gar Fac Gar Fac Gar Fac Gar Fac Was Fac Gar Matter Collected 4986 | 324 258 15 543 341 . 166 402 404 164 471 . 673 77 579 . 10 486 73 Remotely 48 | . . . . . . . . . 48 . . . . . . . . . Salvage Created 9260 | 232 890 48 1339 111 . 135 1178 739 358 869 . 689 165 1471 . . 586 450 Parts 536 | 16 63 2 86 4 . 16 76 43 20 37 . 32 4 79 . . 33 25 Haulers Intercepted 8 | . 2 . 3 . . . 3 . . . . . . . . . . . Recyclers Shooed 5 | . . . 1 . . 1 . . . . . . 3 . . . . . Parts Field Recycled . | . . . . . . . . . . . . . . . . . . . Retrieved Matter . | . . . . . . . . . . . . . . . . . . . Parts Self-Destructed . | . . . . . . . . . . . . . . . . . . . Prevented . | . . . . . . . . . . . . . . . . . . . Kills | -11 -10 -10 -9 -9 -9 -8 -8 -8 -7 -7 -7 -7 -6 -6 -5 -5 -5 -5 ------- Run | Yrd Mat Min Mat Min Exi Min Mat Gar Fac Gar Fac Gar Fac Gar Fac Was Fac Gar Combat Hostiles Destroyed 207 | . 22 3 26 15 . 7 19 17 8 19 . 16 1 22 . . 18 14 Guns 100 | . 17 . 10 5 . 3 11 9 2 11 . 6 . 12 . . 8 6 Cannons 65 | . 4 3 12 2 . . 8 5 6 6 . 8 1 9 . . 1 . AOE 40 | . 1 . 4 8 . 4 . 3 . 1 . 2 . . . . 9 8 Classes Destroyed 20 | 2 6 . 3 2 . . 2 1 1 . . 1 . 2 . . . . Worker 6 | . 1 . 1 . . 1 2 . . . . . . . . . 1 . Builder 3 | . . . 2 1 . . . . . . . . . . . . . . Tunneler 8 | 7 . . . . . . 1 . . . . . . . . . . . Hauler 8 | . 2 . 3 . . . 3 . . . . . . . . . . . Recycler 5 | 1 . . 2 . . 1 . . . . . . 1 . . . . . Mechanic 3 | . . . 2 . . . 1 . . . . . . . . . . . Operator 5 | . 1 . 2 . . . 2 . . . . . . . . . . . Watcher 4 | . 1 . 2 . . . . 1 . . . . . . . . . . Swarmer 57 | . 6 3 10 . . 7 . . . 6 . 3 . 4 . . 9 9 Cutter 6 | . . . . . . . . 3 . . . 3 . . . . . . Grunt 74 | . 16 . 8 . . . 9 7 5 5 . 6 . 12 . . 4 2 Brawler 5 | . . . . . . . 2 1 . 1 . 1 . . . . . . Duelist 1 | . . . . . . . . . . . . 1 . . . . . . Sentry 28 | . . . 8 . . . 4 6 . 6 . . . 3 . . . 1 Demolisher 1 | . . . . 1 . . . . . . . . . . . . . . Specialist 5 | . . . . . . . 4 . . 1 . . . . . . . . Hunter 3 | . . . . . . . . . . . . . . 2 . . . 1 Programmer 11 | . . . . . . . . . 3 . . 2 1 . . . 5 . Behemoth 2 | . . . . . . . . . . . . . . 1 . . . 1 Assembled 14 | . . . . 14 . . . . . . . . . . . . . . Best Kill Streak 8 | 3 4 3 7 7 . 4 7 3 4 6 . 4 1 4 . . 5 8 Combat Bots Only 8 | . 3 3 4 7 . 4 6 3 4 6 . 4 1 4 . . 5 8 Max Kills in Single Turn 4 | 1 2 1 4 2 . 4 2 2 2 2 . 2 1 1 . . 3 4 Gunslinging 1 | . 1 . . . . 1 . . . . . . . . . . . . Exploded 4 | . 1 . 2 2 . 4 . 2 . 1 . 2 . . . . 3 4 Melee . | . . . . . . . . . . . . . . . . . . . Uniques/NPCs Destroyed . | . . . . . . . . . . . . . . . . . . . Combat | -11 -10 -10 -9 -9 -9 -8 -8 -8 -7 -7 -7 -7 -6 -6 -5 -5 -5 -5 -------- Run | Yrd Mat Min Mat Min Exi Min Mat Gar Fac Gar Fac Gar Fac Gar Fac Was Fac Gar Hostile Shots Fired 1389 | . 98 9 147 64 . 11 133 51 27 240 . 125 . 194 . . 60 230 Missed 424 | . 23 2 39 22 . 2 43 13 12 88 . 32 . 60 . . 22 66 Hits 965 | . 75 7 108 42 . 9 90 38 15 152 . 93 . 134 . . 38 164 Melee 26 | . . . . 8 . . 5 2 . . . 11 . . . . . . Projectile 939 | . 75 7 108 34 . 9 85 36 15 152 . 82 . 134 . . 38 164 AOE 12 | . . . . 8 . . . 1 . . . 2 . . . . 1 . Critical Strikes 31 | . . . 4 . . . 2 1 . . . 12 . 2 . . 2 8 Part Disruptions 1 | . . . . . . . . . 1 . . . . . . . . . Damage Taken 14121 | . 808 54 1209 800 . 167 1299 702 297 1619 . 1569 . 1742 . . 1061 2794 Core 2292 | . 234 15 175 79 . 10 67 62 69 231 . 111 . 236 . . 67 936 Absorbed by Shields 913 | . . . . . . . . 27 . . . . . 744 . . . 142 Regen/Repaired (Parts) 379 | . . . . . . . . . . . . . 379 . . . . . Core Remaining (%) 53 | 100 . . . . . 34 . 76 . . . 41 . 72 . . . . Volleys Fired 716 | 27 78 5 84 38 . 6 81 47 31 55 . 94 5 103 1 . 33 28 Largest 3 | 2 2 2 2 2 . 2 2 2 3 3 . 3 2 3 1 . 3 3 Hottest 243 | 40 88 88 91 91 . 46 93 133 155 158 . 136 130 155 60 . 190 243 Shots Fired 1437 | 54 154 10 156 63 . 12 158 81 64 123 . 179 7 225 1 . 90 60 Gun 873 | 54 133 5 92 41 . 10 80 32 20 64 . 80 . 141 1 . 69 51 Cannon 501 | . 21 5 61 11 . . 78 45 44 54 . 83 7 75 . . 17 . Launcher 36 | . . . 3 11 . 2 . 4 . 3 . 3 . . . . 4 6 Special 27 | . . . . . . . . . . 2 . 13 . 9 . . . 3 Kinetic 783 | 54 133 5 92 41 . 10 80 32 20 64 . 98 . 88 . . 53 13 Thermal 531 | . 21 5 61 11 . . 78 45 44 54 . 65 7 75 . . 28 37 Explosive 33 | . . . 3 11 . 2 . 4 . . . 3 . . . . 4 6 Electromagnetic 63 | . . . . . . . . . . 3 . . . 53 1 . 5 1 Robot Hit Streak 39 | 8 15 6 10 8 . 7 14 12 3 13 . 19 20 39 5 . 13 11 Robot Miss Streak 7 | 3 3 1 7 4 . 4 4 6 7 4 . 5 1 3 . . 6 6 Penetration Max 1 | . . . . . . . . . . 1 . . . . . . . . Secondary Targets 6 | . 2 . 1 1 . 2 . . . . . . . . . . . . Max Gunslinging Chain 1 | . 1 . 1 1 . 1 . . . . . . . . . . . . Shots Hit Robots 859 | 30 104 5 83 34 . 7 104 47 21 76 . 91 6 160 1 . 53 37 Core Hits 483 | 14 48 3 50 28 . 10 44 33 17 61 . 29 2 62 . . 53 29 Critical Kills 10 | . 1 . . . . . 1 1 . . . 4 . 2 . . 1 . Critical Parts Destroyed 18 | . 2 . 1 . . . 5 2 1 2 . 2 . 2 . . 1 . Critical Strikes 40 | . 3 . 1 . . . 6 3 1 3 . 6 . 8 . . 2 7 Burn 7 | . . . . . . . . . . . . . . . . . . 7 Meltdown 1 | . . . . . . . . . . . . . . 1 . . . . Destroy 29 | . 3 . 1 . . . 6 3 1 3 . 6 . 4 . . 2 . Corrupt 3 | . . . . . . . . . . . . . . 3 . . . . Melee Attacks . | . . . . . . . . . . . . . . . . . . . Impact . | . . . . . . . . . . . . . . . . . . . Slashing . | . . . . . . . . . . . . . . . . . . . Piercing . | . . . . . . . . . . . . . . . . . . . Sneak Attacks . | . . . . . . . . . . . . . . . . . . . Combat Hostiles . | . . . . . . . . . . . . . . . . . . . Follow-up Attacks . | . . . . . . . . . . . . . . . . . . . Damage Inflicted 20186 | 249 1283 113 1827 1304 . 432 2143 1183 579 1953 . 2039 247 3400 31 . 1871 1532 Guns 9259 | 247 779 . 612 408 . 113 1035 508 180 835 . 823 . 1842 31 . 1067 779 Cannons 6945 | . 240 113 771 122 . . 1027 495 399 815 . 1036 178 1558 . . 191 . Explosions 3696 | . 204 . 391 774 . 304 . 180 . 303 . 180 . . . . 607 753 Melee . | . . . . . . . . . . . . . . . . . . . Ramming 286 | 2 60 . 53 . . 15 81 . . . . . 69 . . . 6 . Kinetic 7639 | 247 779 . 612 408 . 113 1035 508 180 835 . 911 . 1122 . . 754 135 Thermal 7873 | . 240 113 771 122 . . 1027 495 399 907 . 948 178 1558 . . 494 621 Explosive 3393 | . 204 . 391 774 . 304 . 180 . . . 180 . . . . 607 753 Electromagnetic 995 | . . . . . . . . . . 211 . . . 720 31 . 10 23 Impact . | . . . . . . . . . . . . . . . . . . . Slashing . | . . . . . . . . . . . . . . . . . . . Piercing . | . . . . . . . . . . . . . . . . . . . Highest Corruption 7 | . . . . 7 7 7 . 4 . . . 3 . 2 . . 4 4 Average Corruption 4 | . . . . 6 7 7 . 4 . . . 2 . 2 . . 2 4 Corruption Purged . | . . . . . . . . . . . . . . . . . . . Corruption Blocked . | . . . . . . . . . . . . . . . . . . . Effects 162 | . . . . 22 15 28 . 29 . . . 35 . 10 . . 8 15 Message Errors 41 | . . . . 7 3 7 . 7 . . . 8 . 3 . . . 6 Matter Fused 40 | . . . . 1 1 7 . 12 . . . 12 . 3 . . 1 3 Heat Flow Errors 21 | . . . . 5 4 3 . 4 . . . 2 . 2 . . 1 . Energy Discharges 18 | . . . . 1 2 4 . 3 . . . 3 . 1 . . 2 2 Parts Rejected 1 | . . . . 1 . . . . . . . . . . . . . . Data Loss (minor) 23 | . . . . 4 4 5 . . . . . 6 . . . . 1 3 Data Loss (major) 5 | . . . . . . . . 3 . . . . . 1 . . 1 . Misfires 7 | . . . . 2 . 1 . . . . . 4 . . . . . . Alerts 5 | . . . . 1 1 1 . . . . . . . . . . 2 . Weapon Failures 1 | . . . . . . . . . . . . . . . . . . 1 Overload Shots . | . . . . . . . . . . . . . . . . . . . Overflow Damage 272 | . . 2 15 28 . 9 2 3 . 34 . 34 41 23 . . 44 37 Projectiles 80 | . . 2 . 18 . . 2 . . 7 . 2 26 23 . . . . Explosions 177 | . . . 15 10 . 9 . 3 . 27 . 32 . . . . 44 37 Melee 15 | . . . . . . . . . . . . . 15 . . . . . Knockbacks 3 | . 1 . . . . . 1 . . . . 1 . . . . . . Impact 2 | . 1 . . . . . 1 . . . . . . . . . . . Kinetic 1 | . . . . . . . . . . . . 1 . . . . . . Secondary . | . . . . . . . . . . . . . . . . . . . Self-Inflicted Damage 431 | . . . 23 16 . 91 . 123 . . . 48 . . . . 31 99 Shots 11 | . . . 1 1 . 2 . 3 . . . 1 . . . . 1 2 Rammed 26 | 1 4 . 7 1 . 2 6 . . . . . 3 . . . 2 . Targets Rammed 27 | 1 5 . 7 1 . 2 6 . . . . . 3 . . . 2 . Kicked . | . . . . . . . . . . . . . . . . . . . Crushed 1 | . 1 . . . . . . . . . . . . . . . . . Highest Temperature 352 | . 176 165 219 291 245 239 144 267 352 274 . 279 . 199 . . 197 89 Average Temperature 60 | . 54 84 53 124 104 111 30 69 87 53 . 93 . 43 . . 33 50 Received Heat Transfer 3076 | . 273 . 372 60 . . 360 261 99 291 . 477 . 379 . . 78 426 Effects 4 | . . . . 1 . . . . 1 . . 2 . . . . . . Energy Bleed 1 | . . . . 1 . . . . . . . . . . . . . . Interference 3 | . . . . . . . . . 1 . . 2 . . . . . . Siege Activations . | . . . . . . . . . . . . . . . . . . . Martial Activations . | . . . . . . . . . . . . . . . . . . . Shielding Activations . | . . . . . . . . . . . . . . . . . . . Robots Disrupted . | . . . . . . . . . . . . . . . . . . . Combat Hostiles . | . . . . . . . . . . . . . . . . . . . Robots Corrupted 2 | . . . . . . . . . . 1 . . 1 . . . . . Combat Hostiles 1 | . . . . . . . . . . 1 . . . . . . . . Parts Fried 5 | . . . . . . . . . . . . . 1 4 . . . . Impact Corruptions 1 | . . . . . . . . . . . . . 1 . . . . . Robots Melted 1 | . . . . . . . . . . . . . . 1 . . . . Combat Hostiles 1 | . . . . . . . . . . . . . . 1 . . . . Parts Melted 19 | . 1 . 3 . . . 2 . . 1 . 1 1 4 . . 3 3 Heat Transferred 12340 | . 407 185 1332 222 . . 1850 888 518 1260 . 1258 222 2052 . . 703 1443 Parts Sabotaged . | . . . . . . . . . . . . . . . . . . . Parts Stolen . | . . . . . . . . . . . . . . . . . . . Parts Stripped . | . . . . . . . . . . . . . . . . . . . Power Chain Reactions 2 | . . . . . . . . . . 2 . . . . . . . . Alert | -11 -10 -10 -9 -9 -9 -8 -8 -8 -7 -7 -7 -7 -6 -6 -5 -5 -5 -5 ------- Run | Yrd Mat Min Mat Min Exi Min Mat Gar Fac Gar Fac Gar Fac Gar Fac Was Fac Gar Maximum Alert Level 5 | . . . 1 . . . 1 3 2 3 2 5 3 3 2 . 1 2 Low Security (%) 58 | 100 100 100 95 100 . 100 96 20 72 26 . . . . . 100 89 52 Level 1 10 | . . . 4 . . . 3 31 19 11 . 15 . 16 . . 10 46 Level 2 15 | . . . . . . . . 31 8 34 100 19 77 43 100 . . . Level 3 11 | . . . . . . . . 16 . 27 . 33 22 39 . . . . Level 4 2 | . . . . . . . . . . . . 16 . . . . . . Level 5 1 | . . . . . . . . . . . . 15 . . . . . . High Security . | . . . . . . . . . . . . . . . . . . . Max Security . | . . . . . . . . . . . . . . . . . . . Peak Influence 1855 | 15 164 78 269 36 . 121 209 864 453 794 416 1855 973 1007 528 156 225 408 Initial 973 | . . 8 . . . . . 13 453 67 416 284 973 310 528 156 . 144 Average 304 | 1 59 18 79 1 . 24 66 415 111 454 411 965 611 617 488 35 68 210 Influence Increases 8108 | 40 680 70 937 98 . 209 624 921 235 797 . 1731 124 867 . . 426 349 Destroy 0b10 Robot/C 4007 | . 440 60 520 20 . 140 380 400 160 380 . 600 60 400 . . 270 177 Destroy 0b10 Robot/NC 234 | 40 25 . 70 5 . 10 45 5 . . . 5 5 20 . . 4 . Destroy Leader 646 | . 96 10 150 . . 20 106 20 40 30 . 40 20 42 . . 48 24 Allied During Kill 137 | . . . . . . . . 8 . . . 94 16 19 . . . . Successful Hack 155 | . 25 . 24 . . . . 21 . 28 . 7 22 28 . . . . Disable Machine 210 | . 30 . 60 15 . 15 15 . 15 15 . 45 . . . . . . Anti-Garrison Action 1882 | . . . . . . . . 400 . 250 . 900 . 302 . . . 30 Destroy Structure 348 | . 4 . 23 58 . 24 3 22 5 49 . 40 1 8 . . 56 55 Lose Combat Pursuer 489 | . 60 . 90 . . . 75 45 15 45 . . . 48 . . 48 63 Influence Decreases 7865 | 40 657 93 937 98 . 209 604 77 1003 99 388 282 1536 303 559 448 219 313 Entered New Map 2811 | . . 15 . . . . . 7 411 29 378 122 882 133 479 292 . 63 Time Decay 2846 | 40 527 78 509 67 . 209 407 . 298 . 10 . 294 . 80 156 171 . Lost Part 716 | . 20 . 70 31 . . 47 50 . 70 . 80 . 90 . . 48 210 Lost Ally 280 | . . . . . . . . 20 . . . 80 60 80 . . . 40 Purge Threat 1212 | . 110 . 358 . . . 150 . 294 . . . 300 . . . . . Squads Dispatched 24 | . 4 . 4 . . . 5 . 3 . . . 2 . 2 . 4 . Investigation 6 | . 3 . 2 . . . . . . . . . . . 1 . . . Extermination 6 | . . . . . . . . . 3 . . . 1 . . . 2 . Reinforcement 10 | . 1 . 2 . . . 5 . . . . . 1 . 1 . . . Assault . | . . . . . . . . . . . . . . . . . . . Garrison 2 | . . . . . . . . . . . . . . . . . 2 . Intercept . | . . . . . . . . . . . . . . . . . . . Searches Triggered . | . . . . . . . . . . . . . . . . . . . Construction Impeded . | . . . . . . . . . . . . . . . . . . . Haulers Reinforced . | . . . . . . . . . . . . . . . . . . . Active Scanning Responses . | . . . . . . . . . . . . . . . . . . . Cargo Convoy Interrupts . | . . . . . . . . . . . . . . . . . . . Stealth | -11 -10 -10 -9 -9 -9 -8 -8 -8 -7 -7 -7 -7 -6 -6 -5 -5 -5 -5 --------- Run | Yrd Mat Min Mat Min Exi Min Mat Gar Fac Gar Fac Gar Fac Gar Fac Was Fac Gar Distress Signals 12 | . 2 . 4 . . . 4 . . . . . . . . . 2 . Communications Jammed . | . . . . . . . . . . . . . . . . . . . Distress Signals . | . . . . . . . . . . . . . . . . . . . Times Spotted 297 | . 31 2 41 19 . 7 33 19 11 19 . 26 5 33 1 . 28 22 Peak Tracking Total 11 | . 4 2 6 9 . 4 5 3 4 7 . 6 2 5 1 . 6 11 Tactical Retreats 29 | . 3 . 4 2 . . 5 3 1 3 . . . 3 . . 2 3 Traps | -11 -10 -10 -9 -9 -9 -8 -8 -8 -7 -7 -7 -7 -6 -6 -5 -5 -5 -5 ------- Run | Yrd Mat Min Mat Min Exi Min Mat Gar Fac Gar Fac Gar Fac Gar Fac Was Fac Gar Traps Triggered 28 | . 2 . 1 . . . . 6 1 3 . 9 . 3 1 . . 2 Indirectly . | . . . . . . . . . . . . . . . . . . . Trap Hack Attempts . | . . . . . . . . . . . . . . . . . . . Triggered . | . . . . . . . . . . . . . . . . . . . Disarmed . | . . . . . . . . . . . . . . . . . . . Reprogrammed . | . . . . . . . . . . . . . . . . . . . Reused . | . . . . . . . . . . . . . . . . . . . Traps Extracted . | . . . . . . . . . . . . . . . . . . . Installed . | . . . . . . . . . . . . . . . . . . . Triggered . | . . . . . . . . . . . . . . . . . . . Machines | -11 -10 -10 -9 -9 -9 -8 -8 -8 -7 -7 -7 -7 -6 -6 -5 -5 -5 -5 ---------- Run | Yrd Mat Min Mat Min Exi Min Mat Gar Fac Gar Fac Gar Fac Gar Fac Was Fac Gar Machines Disabled 31 | . 2 . 4 1 . 1 1 4 1 4 . 9 . 3 . . . 1 Max in Single Turn 2 | . 2 . 1 1 . 1 1 1 1 1 . 2 . 1 . . . 1 Garrison Relay 16 | . . . . . . . . 4 . 3 . 5 . 3 . . . 1 Machines Repaired . | . . . . . . . . . . . . . . . . . . . Machines Dismantled . | . . . . . . . . . . . . . . . . . . . Machines Sabotaged . | . . . . . . . . . . . . . . . . . . . Overloaded Fab Kills . | . . . . . . . . . . . . . . . . . . . Hacking | -11 -10 -10 -9 -9 -9 -8 -8 -8 -7 -7 -7 -7 -6 -6 -5 -5 -5 -5 --------- Run | Yrd Mat Min Mat Min Exi Min Mat Gar Fac Gar Fac Gar Fac Gar Fac Was Fac Gar Machines Accessed 44 | . 7 1 6 . 1 . 4 3 3 3 1 2 5 4 1 . 3 . Terminals 34 | . 7 . 5 . . . 3 3 2 3 . 2 3 4 1 . 1 . Fabricators . | . . . . . . . . . . . . . . . . . . . Repair Stations 1 | . . . . . . . . . . . . . 1 . . . . . Recycling Units 2 | . . . 1 . . . . . . . . . . . . . 1 . Scanalyzers . | . . . . . . . . . . . . . . . . . . . Garrison Access 5 | . . . . . . . 1 . 1 . 1 . 1 . . . 1 . Total Hacks 103 | . 15 1 23 . 1 . 10 6 6 9 1 4 11 11 2 . 3 . Successful 45 | . 9 1 10 . 1 . 4 2 3 2 1 1 6 3 . . 2 . Failed 57 | . 5 . 13 . . . 6 4 3 7 . 3 5 8 2 . 1 . Catastrophic 10 | . 1 . 1 . . . . 1 . . . 1 2 2 1 . 1 . Database Lockouts 1 | . 1 . . . . . . . . . . . . . . . . . Manual 43 | . 10 . 10 . 1 . 8 1 2 . . . 5 3 2 . 1 . Terminals 90 | . 15 . 21 . . . 9 6 5 9 . 4 7 11 2 . 1 . Fabricators . | . . . . . . . . . . . . . . . . . . . Repair Stations 3 | . . . . . . . . . . . . . 3 . . . . . Recycling Units 3 | . . . 2 . . . . . . . . . . . . . 1 . Scanalyzers . | . . . . . . . . . . . . . . . . . . . Garrison Access 5 | . . . . . . . 1 . 1 . 1 . 1 . . . 1 . Terminal Hacks 32 | . 7 1 9 . 1 . 2 2 2 2 . 1 2 3 . . . . Robot Analysis 2 | . 2 . . . . . . . . . . . . . . . . . Prototype ID Bank 3 | . 2 . 1 . . . . . . . . . . . . . . . Open Door 4 | . . 1 . . . . . 1 . . . 1 . 1 . . . . Emergency Access Points 3 | . . . . . . . . 1 . 1 . . . 1 . . . . Alert Level 1 | . 1 . . . . . . . . . . . . . . . . . Unreport Threat 10 | . 2 . 3 . . . 1 . 2 . . . 2 . . . . . Patrol Status 1 | . . . 1 . . . . . . . . . . . . . . . Recall Reinforcements 1 | . . . . . . . 1 . . . . . . . . . . . Hauler Manifests 2 | . . . 2 . . . . . . . . . . . . . . . Registered Components 1 | . . . 1 . . . . . . . . . . . . . . . Zone Layout 1 | . . . 1 . . . . . . . . . . . . . . . Garrison Registry 1 | . . . . . . . . . . 1 . . . . . . . . Patrol Navigation 1 | . . . . . . . . . . . . . . 1 . . . . Proto ID Catalog 1 | . . . . . 1 . . . . . . . . . . . . . Fabricator Hacks . | . . . . . . . . . . . . . . . . . . . Repair Station Hacks 2 | . . . . . . . . . . . . . 2 . . . . . Scan Component 1 | . . . . . . . . . . . . . 1 . . . . . Repair 1 | . . . . . . . . . . . . . 1 . . . . . Recycling Unit Hacks 1 | . . . . . . . . . . . . . . . . . 1 . Retrieve Components 1 | . . . . . . . . . . . . . . . . . 1 . Scanalyzer . | . . . . . . . . . . . . . . . . . . . Garrison Access Hacks 5 | . . . . . . . 1 . 1 . 1 . 1 . . . 1 . Unlock Access 5 | . . . . . . . 1 . 1 . 1 . 1 . . . 1 . Unauthorized Hacks 5 | . 2 . 1 . . . 1 . . . . . 1 . . . . . Terminals 5 | . 2 . 1 . . . 1 . . . . . 1 . . . . . Botnet 4 | . 1 . 1 . . . 1 . . . . . 1 . . . . . Operators 1 | . 1 . . . . . . . . . . . . . . . . . Fabricators . | . . . . . . . . . . . . . . . . . . . Repair Stations . | . . . . . . . . . . . . . . . . . . . Recycling Units . | . . . . . . . . . . . . . . . . . . . Scanalyzers . | . . . . . . . . . . . . . . . . . . . Garrison Access . | . . . . . . . . . . . . . . . . . . . Data Cores Recovered . | . . . . . . . . . . . . . . . . . . . Used . | . . . . . . . . . . . . . . . . . . . Hacking Detections 36 | . 7 . 6 . . . 3 3 2 3 1 2 3 4 1 . 1 . Full Trace Events 5 | . 1 . 1 . . . . . . . . 1 . 1 1 . . . Feedback Events . | . . . . . . . . . . . . . . . . . . . Feedback Blocked . | . . . . . . . . . . . . . . . . . . . Robot Schematics Acquired . | . . . . . . . . . . . . . . . . . . . Robots Built . | . . . . . . . . . . . . . . . . . . . Authchips . | . . . . . . . . . . . . . . . . . . . Time . | . . . . . . . . . . . . . . . . . . . Total Robot Build Rating . | . . . . . . . . . . . . . . . . . . . Part Schematics Acquired . | . . . . . . . . . . . . . . . . . . . Parts Built . | . . . . . . . . . . . . . . . . . . . Authchips . | . . . . . . . . . . . . . . . . . . . Time . | . . . . . . . . . . . . . . . . . . . Total Part Build Rating . | . . . . . . . . . . . . . . . . . . . Parts Repaired 1 | . . . . . . . . . . . . . 1 . . . . . Time 13 | . . . . . . . . . . . . . 13 . . . . . Parts Recycled . | . . . . . . . . . . . . . . . . . . . Recycled Matter . | . . . . . . . . . . . . . . . . . . . Retrieved Matter . | . . . . . . . . . . . . . . . . . . . Retrieved Components 2 | . . . . . . . . . . . . . . . . . 2 . Parts Scanalyzed . | . . . . . . . . . . . . . . . . . . . Part Schematics Acquired . | . . . . . . . . . . . . . . . . . . . Parts Damaged . | . . . . . . . . . . . . . . . . . . . Bothacking | -11 -10 -10 -9 -9 -9 -8 -8 -8 -7 -7 -7 -7 -6 -6 -5 -5 -5 -5 ------------ Run | Yrd Mat Min Mat Min Exi Min Mat Gar Fac Gar Fac Gar Fac Gar Fac Was Fac Gar Used RIF Installer 6 | . . . . . . . . 2 . 1 . 1 . 1 . . . 1 Threat Obfuscator 2 | . . . . . . . . . . . . . . 1 . . . 1 Watcher Feeds 1 | . . . . . . . . . . 1 . . . . . . . . Structural Interface 1 | . . . . . . . . . . . . 1 . . . . . . Program Shield 1 | . . . . . . . . 1 . . . . . . . . . . Robots Hacked 8 | . . . . . . . . . . 2 . 1 . 3 . . . 2 Non-combat . | . . . . . . . . . . . . . . . . . . . Combat 8 | . . . . . . . . . . 2 . 1 . 3 . . . 2 Robot Hacks Applied 8 | . . . . . . . . . . 2 . 1 . 3 . . . 2 parse_system 1 | . . . . . . . . . . 1 . . . . . . . . scatter_targeting 1 | . . . . . . . . . . 1 . . . . . . . . amplify_resonance 3 | . . . . . . . . . . . . . . 3 . . . . streamctrl_high 1 | . . . . . . . . . . . . . . . . . . 1 formatsys_high 2 | . . . . . . . . . . . . 1 . . . . . 1 Relay Couplers Released 63 | . . . . . . . . 17 . 13 . 19 . 11 . . . 3 Machine Destruction 63 | . . . . . . . . 17 . 13 . 19 . 11 . . . 3 Attached 6 | . . . . . . . . 1 . 1 . 1 . . . . 1 2 Fabnet Peak Effective % . | . . . . . . . . . . . . . . . . . . . Robots Rewired 6 | . . . . . . . . . . . . 4 . 2 . . . . Allies Hacked . | . . . . . . . . . . . . . . . . . . . Hacks Repelled . | . . . . . . . . . . . . . . . . . . . Allies | -11 -10 -10 -9 -9 -9 -8 -8 -8 -7 -7 -7 -7 -6 -6 -5 -5 -5 -5 -------- Run | Yrd Mat Min Mat Min Exi Min Mat Gar Fac Gar Fac Gar Fac Gar Fac Was Fac Gar Total Allies 17 | . . . . 3 . . . 1 . 2 . 7 . 2 . . . 2 Largest Group 5 | . . . . 3 . . . 1 . 2 2 5 5 2 . . . 1 Highest-Rated Group 196 | . . . . 40 . . . 31 . 142 142 196 196 92 . . . 41 Highest-Rated Ally 80 | . . . . 16 . . . 31 . 80 80 80 43 46 . . . 41 Total Orders 1 | . . . . . . . 1 . . . . . . . . . . . RETURN 1 | . . . . . . . 1 . . . . . . . . . . . Ally Attacks 135 | . . . . 4 . . 2 14 . . . 79 22 12 . . . 2 Total Damage 2618 | . . . . 17 . . 4 187 . . . 1626 552 217 . . . 15 Kills 23 | . . . . . . . . 3 . . . 14 2 4 . . . . Allies Corrupted . | . . . . . . . . . . . . . . . . . . . Allies Melted . | . . . . . . . . . . . . . . . . . . . Intel | -11 -10 -10 -9 -9 -9 -8 -8 -8 -7 -7 -7 -7 -6 -6 -5 -5 -5 -5 ------- Run | Yrd Mat Min Mat Min Exi Min Mat Gar Fac Gar Fac Gar Fac Gar Fac Was Fac Gar Active Infowar (turns) 4400 | 45 2145 336 1680 193 . . 1 . . . . . . . . . . . Seismic 4400 | 45 2145 336 1680 193 . . 1 . . . . . . . . . . . Robot Analysis Total 2 | . 2 . . . . . . . . . . . . . . . . . Derelict Logs Recovered 2 | . . 1 . 1 . . . . . . . . . . . . . . Drone Launches 1 | . . . . . . . 1 . . . . . . . . . . . Drone Recoveries 1 | . . . . . . . 1 . . . . . . . . . . . Exploration | -11 -10 -10 -9 -9 -9 -8 -8 -8 -7 -7 -7 -7 -6 -6 -5 -5 -5 -5 ------------- Run | Yrd Mat Min Mat Min Exi Min Mat Gar Fac Gar Fac Gar Fac Gar Fac Was Fac Gar Turns Passed 22394 | 374 2145 343 1929 1147 514 1006 1889 1857 1443 1710 33 2661 656 1984 177 733 1257 536 Spaces Moved 8665 | 180 742 135 630 425 214 405 591 693 472 623 14 953 356 929 110 454 549 190 Core 3 | 2 . . . . . . . . . . . . . . . . . 1 Treads 8475 | 178 742 135 630 425 214 405 591 693 472 623 14 953 356 929 110 454 542 9 Legs . | . . . . . . . . . . . . . . . . . . . Wheels 165 | . . . . . . . . . . . . . . . . . 7 158 Hover 22 | . . . . . . . . . . . . . . . . . . 22 Flight . | . . . . . . . . . . . . . . . . . . . Fastest Speed 50 | 50 160 240 240 240 240 240 240 243 243 235 235 235 160 160 160 160 160 50 Average Speed 219 | 158 235 240 240 240 240 240 242 243 243 237 235 239 160 166 160 160 200 229 Slowest Speed 560 | 160 320 320 240 320 240 240 243 243 325 560 235 240 160 240 160 160 325 490 Overloaded Moves . | . . . . . . . . . . . . . . . . . . . Propulsion Burnouts . | . . . . . . . . . . . . . . . . . . . Robots Hopped . | . . . . . . . . . . . . . . . . . . . Potential Cave-ins 2 | . . . . . . . . . . . . . . . . . 2 . Cave-ins Triggered . | . . . . . . . . . . . . . . . . . . . Exploration Rate (%) 48 | 8 85 32 59 82 42 95 39 70 14 70 1 78 12 91 3 95 13 26 Regions Visited 18 Branch Regions 4 Pre-discovered Areas 1 | . . . . 1 . . . . . . . . . . . . . . Known Exits Taken 6 | . . 1 . . . . 1 . 1 . 1 . 1 . . . 1 . Unknown Exits Taken 6 | 1 1 . 1 1 1 1 . . . . . . . . . . . . Scrap Searched 5 | . . . . 3 . 2 . . . . . . . . . . . . Spaces Dug 62 | . . . . 5 . . . 17 3 . . 18 . . . . 17 2 Terrain Destroyed 287 | . 5 . 22 72 . 24 . 25 7 5 . 48 . . . . 52 27 Melee . | . . . . . . . . . . . . . . . . . . . Projectile 24 | . . . . 3 . . . . 7 1 . 6 . . . . 7 . AOE 263 | . 5 . 22 69 . 24 . 25 . 4 . 42 . . . . 45 27 Terrain Rammed . | . . . . . . . . . . . . . . . . . . . Walls Destroyed . | . . . . . . . . . . . . . . . . . . . Machines Disabled . | . . . . . . . . . . . . . . . . . . . Actions | -11 -10 -10 -9 -9 -9 -8 -8 -8 -7 -7 -7 -7 -6 -6 -5 -5 -5 -5 --------- Run | Yrd Mat Min Mat Min Exi Min Mat Gar Fac Gar Fac Gar Fac Gar Fac Was Fac Gar Total 10983 | 221 1006 144 886 488 216 429 886 808 729 781 14 1207 434 1231 111 465 665 262 Wait 1050 | . 142 . 112 9 . 2 174 2 211 64 . 107 32 129 . . 41 25 Move 8653 | 179 741 134 629 424 213 404 591 692 472 622 14 952 356 928 110 453 549 190 Hop . | . . . . . . . . . . . . . . . . . . . Pick Up 164 | 7 22 1 15 3 1 5 10 16 5 8 . 13 27 14 . 4 12 1 Fast Attach 38 | 7 . 1 4 1 . . . 7 2 . . 2 1 2 . 2 6 3 Attach 68 | . 3 . 9 6 . 2 7 4 2 8 . 6 2 8 . . 3 8 Detach 4 | . . . . . 2 . . 1 . . . . . . . . 1 . Swap 91 | . 8 1 13 5 . 3 9 10 1 11 . 6 3 10 . . 9 2 Drop 109 | . 7 2 13 1 . 5 8 23 5 7 . 9 5 8 . 6 9 1 Fire 716 | 27 78 5 84 38 . 6 81 47 31 55 . 94 5 103 1 . 33 28 Melee . | . . . . . . . . . . . . . . . . . . . Ram . | . . . . . . . . . . . . . . . . . . . Kick . | . . . . . . . . . . . . . . . . . . . Crush 27 | 1 5 . 7 1 . 2 6 . . . . . 3 . . . 2 . Escape Stasis 34 | . . . . . . . . 6 . 6 . 18 . . . . . 4 Rewire 29 | . . . . . . . . . . . . . . 29 . . . . Trap . | . . . . . . . . . . . . . . . . . . . Miscellaneous . | . . . . . . . . . . . . . . . . . . . Route ------- -11/Scrapyard -10/Materials (discovered 4 exits: *Mat x2 / *Min x2) -10/Mines (discovered 2 exits: *Mat x2) -9/Materials (discovered 6 exits: *Mat x2 / [*Min x2] / [*Sto x2]) -9/Mines (discovered 2 exits: *Mat / *Exi) -9/Exiles -8/Mines (discovered 2 exits: *Mat x2) -8/Materials (discovered 3 exits: *Fac x2 / Gar) -8/Garrison (discovered 2 exits: *Fac x2) -7/Factory -7/Garrison (discovered 4 exits: *Fac x4) -7/Factory -7/Garrison (discovered 3 exits: *Fac x3) -6/Factory -6/Garrison (discovered 3 exits: *Fac x3) -5/Factory -5/Waste -5/Factory (discovered 2 exits: [*Fac] / Gar) -5/Garrison History --------- Turn | Location | Event 2 | -11/Scrapyard | Met Revision 17 7 | -11/Scrapyard | Discovered new exit (range 15) 375 | -11/Scrapyard | Entered Materials 376 | -10/Materials | Build established: Mutant 708 | -10/Materials | Discovered new exit (range 7) 944 | -10/Materials | Core integrity fell below 50% 1034 | -10/Materials | Central database locked down 1325 | -10/Materials | Core integrity fell below 20% 1792 | -10/Materials | Discovered new exit (range 16) 1852 | -10/Materials | Discovered new exit (range 16) 2014 | -10/Materials | Discovered new exit (range 10) 2520 | -10/Materials | Entered Mines 2731 | -10/Mines | Found the Drone Emporium 2740 | -10/Mines | Found Prototype Device 2740 | -10/Mines | Identified Thief Drone Bay 2776 | -10/Mines | Discovered new exit (range 13) 2824 | -10/Mines | Identified exit to Materials 2863 | -10/Mines | Entered Materials 2863 | -9/Materials | Evolved 2 slots: Propulsion x1, Utility x1 3605 | -9/Materials | Discovered new exit (range 9) 3796 | -9/Materials | Discovered new exit (range 16) 4004 | -9/Materials | Lost 3 parts (1n1u1w) 4137 | -9/Materials | Discovered new exit (range 13) 4303 | -9/Materials | Discovered new exit (range 4) 4347 | -9/Materials | Discovered new exit (range 14) 4561 | -9/Materials | Build established: Scavenger-Mutant 4783 | -9/Materials | Discovered new exit (range 5) 4792 | -9/Materials | Entered Mines 4792 | -9/Mines | Discovered new exit (range 14) 4807 | -9/Mines | Assisted by bots powering up and referring to "LRC-V3" 4934 | -9/Mines | Assembled infested the area 4939 | -9/Mines | Assisted by a Guerilla fighting off Assembled 4979 | -9/Mines | Core integrity fell below 50% 5004 | -9/Mines | Lost 4 allies 5065 | -9/Mines | Destroyed 7 combat bots 5091 | -9/Mines | Lost 3 parts (1n1u1w) 5154 | -9/Mines | Build established: Mutant 5235 | -9/Mines | Received a Rocket Launcher from a helpful Derelict 5543 | -9/Mines | Found a Scrap Suit stashed away for nefarious purposes 5810 | -9/Mines | Deemed a non-threat by the Exiles lab entrance 5812 | -9/Mines | Discovered new exit (range 5) 5939 | -9/Mines | Entered Exiles 5972 | -9/Exiles | Discovered new exit (range 15) 6005 | -9/Exiles | Met 8R-AWN 6034 | -9/Exiles | Met EX-HEX 6118 | -9/Exiles | Met EX-BIN 6147 | -9/Exiles | Aligned with FarCom system 6149 | -9/Exiles | Given EX-Vault access code 6204 | -9/Exiles | Opened EX-Vault 6224 | -9/Exiles | Found Chronowheel 6275 | -9/Exiles | Warned to stay clear of 0b10 Research branches 6453 | -9/Exiles | Left Exiles lab with Chronowheel 6453 | -9/Exiles | Entered Mines 6471 | -8/Mines | Discovered new exit (range 16) 7130 | -8/Mines | Found DCF Scrap (14 items) 7257 | -8/Mines | Discovered new exit (range 8) 7459 | -8/Mines | Entered Materials 7459 | -8/Materials | Evolved 2 slots: Utility x2 8367 | -8/Materials | Build established: Scavenger-Mutant 8471 | -8/Materials | Discovered new exit (range 16) 9146 | -8/Materials | Discovered new exit (range 13) 9348 | -8/Materials | Identified exit to Garrison 9348 | -8/Materials | Entered Garrison 9454 | -8/Garrison | Triggered checkpoint 9521 | -8/Garrison | Rescued a captive Derelict 9550 | -8/Garrison | Garrison Relay disabled 9622 | -8/Garrison | Triggered checkpoint 9688 | -8/Garrison | Triggered checkpoint 10114 | -8/Garrison | Discovered new exit (range 15) 10146 | -8/Garrison | Build established: Mutant 10269 | -8/Garrison | Installed Relay Interface Framework 10300 | -8/Garrison | Triggered checkpoint 10324 | -8/Garrison | Garrison Relay disabled 10504 | -8/Garrison | Triggered checkpoint 10668 | -8/Garrison | Triggered checkpoint 10706 | -8/Garrison | Garrison Relay disabled 10773 | -8/Garrison | Garrison Relay disabled 10864 | -8/Garrison | Build established: Scavenger-Mutant 10922 | -8/Garrison | Discovered new exit (range 13) 10982 | -8/Garrison | Expanded RIF knowledge: Program Shield 11205 | -8/Garrison | Entered Factory 11205 | -7/Factory | Evolved 2 slots: Utility x1, Weapon x1 11521 | -7/Factory | Build established: Bothacker-Gunner 12648 | -7/Factory | Identified exit to Garrison 12648 | -7/Factory | Entered Garrison 12732 | -7/Garrison | Triggered checkpoint 12786 | -7/Garrison | Triggered checkpoint 12825 | -7/Garrison | Garrison Relay disabled 13135 | -7/Garrison | Lost 4 parts (2n1u1w) 13286 | -7/Garrison | Triggered checkpoint 13443 | -7/Garrison | Discovered new exit (range 9) 13520 | -7/Garrison | Triggered checkpoint 13644 | -7/Garrison | Garrison Relay disabled 13724 | -7/Garrison | Triggered checkpoint 13873 | -7/Garrison | Lost 3 parts (1u2w) 13948 | -7/Garrison | Discovered new exit (range 9) 13948 | -7/Garrison | Discovered new exit (range 56) 13948 | -7/Garrison | Discovered new exit (range 60) 13948 | -7/Garrison | Discovered new exit (range 15) 14223 | -7/Garrison | Found embedded Infiltrators 14250 | -7/Garrison | Expanded RIF knowledge: Watcher Feeds 14288 | -7/Garrison | Garrison Relay disabled 14358 | -7/Garrison | Entered Factory 14358 | -7/Factory | Accompanied by 2 allies 14391 | -7/Factory | Identified exit to Garrison 14391 | -7/Factory | Entered Garrison 14391 | -7/Garrison | Accompanied by 2 allies 14455 | -7/Garrison | Triggered checkpoint 14479 | -7/Garrison | Rescued a captive Derelict 14481 | -7/Garrison | Rescued a captive Derelict 14568 | -7/Garrison | Garrison Relay disabled 14788 | -7/Garrison | Triggered checkpoint 14903 | -7/Garrison | Triggered checkpoint 14941 | -7/Garrison | Lost 3 allies 14943 | -7/Garrison | Core integrity fell below 50% 14981 | -7/Garrison | Lost 3 parts (1p2n) 15216 | -7/Garrison | Build established: Bothacker-Tank 15295 | -7/Garrison | Discovered new exit (range 10) 15362 | -7/Garrison | Lost 3 parts (2u1w) 15411 | -7/Garrison | Garrison Relay disabled 15757 | -7/Garrison | Triggered checkpoint 16191 | -7/Garrison | Triggered checkpoint 16228 | -7/Garrison | Garrison Relay disabled 16270 | -7/Garrison | Discovered new exit (range 14) 16331 | -7/Garrison | Triggered checkpoint 16433 | -7/Garrison | Expanded RIF knowledge: Structural Interface 16481 | -7/Garrison | Triggered checkpoint 16566 | -7/Garrison | Garrison Relay disabled 16669 | -7/Garrison | Garrison Relay disabled 16742 | -7/Garrison | Build established: Botlord-Tank 16896 | -7/Garrison | Discovered new exit (range 11) 17052 | -7/Garrison | Entered Factory 17052 | -6/Factory | Accompanied by 5 allies 17052 | -6/Factory | Evolved 2 slots: Propulsion x1, Utility x1 17241 | -6/Factory | Repaired Huge Storage Unit 17378 | -6/Factory | Lost 3 allies 17708 | -6/Factory | Identified exit to Garrison 17708 | -6/Factory | Entered Garrison 17708 | -6/Garrison | Accompanied by 2 allies 17945 | -6/Garrison | Expanded RIF knowledge: Threat Obfuscation 17994 | -6/Garrison | Triggered checkpoint 18417 | -6/Garrison | Spotted B-75 Beast 18480 | -6/Garrison | Destroyed B-75 Beast 18868 | -6/Garrison | Lost 4 parts (1n2u1w) 18947 | -6/Garrison | Discovered new exit (range 15) 19126 | -6/Garrison | Garrison Relay disabled 19171 | -6/Garrison | Triggered checkpoint 19283 | -6/Garrison | Discovered new exit (range 10) 19338 | -6/Garrison | Triggered checkpoint 19393 | -6/Garrison | Garrison Relay disabled 19570 | -6/Garrison | Discovered new exit (range 10) 19645 | -6/Garrison | Garrison Relay disabled 19692 | -6/Garrison | Entered Factory 19692 | -5/Factory | Evolved 2 slots: Propulsion x2 19869 | -5/Factory | Sucked down chute 19869 | -5/Factory | Entered Waste 19869 | -5/Waste | The area was eerily silent 20197 | -5/Waste | Discovered new exit (range 13) 20602 | -5/Waste | Entered Factory 20868 | -5/Factory | Discovered new exit (range 15) 21413 | -5/Factory | Build established: Bothacker-Gunner 21680 | -5/Factory | Garrison activated, responded to threat 21859 | -5/Factory | Identified exit to Garrison 21859 | -5/Factory | Entered Garrison 22006 | -5/Garrison | Triggered checkpoint 22084 | -5/Garrison | Expanded RIF knowledge: Threat Obfuscation 22130 | -5/Garrison | Garrison Relay disabled 22255 | -5/Garrison | Spotted B-75 Beast 22282 | -5/Garrison | Destroyed B-75 Beast 22293 | -5/Garrison | Triggered checkpoint 22335 | -5/Garrison | Triggered checkpoint 22337 | -5/Garrison | Destroyed 8 combat bots 22339 | -5/Garrison | Triggered checkpoint 22371 | -5/Garrison | Core integrity fell below 50% 22375 | -5/Garrison | Released all parts (4) 22378 | -5/Garrison | Core integrity fell below 20% 22395 | -5/Garrison | Destroyed by S-27 Virus with Autogun Last Messages --------------- 22365_ Imp. Remote Datajack destroyed. 22365_ Critical hit (Burn: +37). 22371_ Slayer 6a destroyed. 22372_ Jacked G-50 Soldier... >>amplify_resonance Unable to locate active power source. 22374_ Jacked G-50 Soldier... >>formatsys_high Rerouting network defenses. Erasing system data. Installing primary routines, ETC: 6. 22374_ Remote Datajack destroyed. 22375_ Soldier 6a destroyed. 22375_ Released Target Analyzer. 22375_ Released Huge Storage Unit. 22375_ Released Relay Coupler [Grunt]. 22375_ Released Relay Coupler [Hunter]. 22376_ Acquired Cmb. Airjet. 22384_ RIF reveals location of phase wall. 22392_ QG AP I=T|6HORLGE1S9BB8MSYC<,BMVEAY Map ----- +----------------------------------------------------+ | ?????????????????????????????????????????????????? | | ?????????????????????????????????????????????????? | | ?????????????????????????????????????????????????? | | ?????????????????????????????????????????????????? | | ?????????????????????????????????????????????????? | | ?????????????????????????????????????????????????? | | ????????????????????????########?????????????????? | | ????????????????????????# #?????????????????? | | ????????????????????????# """"#?????????????????? | | ????????????????????????# ]]""#?????????????????? | | ????????????????????????# ]]""#?????????????????? | | ????????????????????????# """"#?????????????????? | | ????????????????#####???# #?????????????????? | | ????????????????#"""#???# ######?????????????????? | | ????????????????#" "#???# #??????????????????????? | | ????????????????#" "#???# #######????????????????? | | ????????????????#" "#???# #"""!"#????????????????? | | ????????????????# #???#;## ! ##????????????????? | | ????????????????## ##???#[= ! #????????????????? | | ?????????????????# #????#=#######????????????????? | | ?????????????????# #??###%#?????????######?###???? | | ?????????????????# #### %*#?????????# #? ???? | | ?????????????????# + *#?????????# #? ???? | | ?????????????????# #### #?????????# ## ???? | | ?????????????????# #??### #?????????# #### #???? | | ?????????????????# #????#@#?????????# #??#^ #???? | | ?????????????????# #????#=#?????????# #??# #???? | | ?????????????????# #????# #####?????# #??# "???? | | ?????????????????# #????#ss #?????# #??# "???? | | ?????????????????# #????#s### #?????# #??# "???? | | ?????????????????# #????#s#?# #?????# #??# "???? | | ?????????????????# #????# #?# #?????# #??# #???? | | ?????????????????#%#????# #?# #?????# #??# #???? | | ????????????????##"######+### ####### #### ###?? | | ????????????????# ^ + #?? | | ????????????????#% ###?? | | ????????????????# g######+## ################???? | | ????????????????# ###### ## #??????????????????? | | ???????????????## " ## #??????????????????? | | ???????????????# #### ### #??????????????????? | | ???????????????# # #?# #??????????????????? | | ???????????????#[![] ### #?# #??????????????????? | | ??????????# !#* ]!##?# #?# #??????????????????? | | ?????# !%%%]!!!#?#+#?# #??????????????????? | | ??? %!%=!== +??????????????????? | | ??? [=!%=|! +??????????????????? | | ???### ## [[ ##########??????????????????? | | ?????# ???# %%##???????????????????????????? | | ????????? ????????????????????????????? | | ??????? ????????????????????????????? | +----------------------------------------------------+ Best States ------------- Heat Dissipation 109 Energy Generation 23 Energy Capacity 340 Matter Stores 300 Matter Capacity 300 Sight Range 16 Terrain Scan Density 10 Armor Coverage 450 Weapon Cycling 30 Evasion (%) 49 Target Analysis 5 Recoil Reduction 7 Relay Coupler Types 2 Relay Coupler Value 57 Item Schematics ----------------- None Robot Schematics ------------------ None Fabricated ------------ Nothing Repaired ---------- Huge Storage Unit | 36% | -6/Factory Alien Tech Used ----------------- None Achievements -------------- Short-term Sacrifices Challenges ------------ None Game ------ Seed ServoHugePlatform Manual? 0 Play Time 02:00:33 Cumulative 52.2 hours Start 2025.06.30 @ 20:43:13 End 2025.06.30 @ 22:44:27 Sessions 1 Manual Loads 0 Difficulty Rogue Special Mode None Game No. 46 Rogue 46 Adventurer 0 Explorer 0 Win Type - Total 1 Types 1/0/0/0/0/0/0/0/0/0 Lore% 26 Gallery% 32 Achievement% 35 Wizard Run 0 Options --------- Layout 1 ASCII 0 Keyboard 1 Movement Arrows Keybinds 0 Fullscreen 1 Font 24/Smallcaps Map View 50x40 Zoom Use 0% Tactical HUD 1 Map Filters NONE Filters NONE Steam 1 RUN: ae188ad6-b3aa-485e-b10b-13c76ccdc21b